[Event "GER-ch Youth U10 2020"]
[Site "Willingen"]
[Date "2020.10.28"]
[Round "3.9"]
[White "Malinowsky, Levi"]
[Black "Barthel, Jacob"]
[Result "1-0"]
[ECO "C68"]
[WhiteElo "1606"]
[BlackElo "1231"]
[Annotator "NA"]
[PlyCount "59"]
[EventDate "2020.10.27"]
[EventType "swiss"]
[EventRounds "7"]
[EventCountry "GER"]
[SourceTitle "playchess.com"]
[Source "ChessBase"]
[SourceQuality "1"]
[TimeControl "40/4500+30:900+30"]

1. e4 {[%emt 0:00:00]} e5 {[%emt 0:00:00]} 2. Nf3 {[%emt 0:00:00]} Nc6 {[%emt 0:00:00]} 3. Bb5 {[%emt 0:00:00]} a6 {[%emt 0:00:01]} 4. Bxc6 {[%emt 0:00:07]} dxc6 {[%emt 0:00:06]} 5. O-O {[%emt 0:00:07]} Bd6 {[%emt 0:00:14]} 6. d4 {[%emt 0:01:02]} Bg4 {[%emt 0:00:16]} 7. dxe5 {[%emt 0:00:55]} Bxf3 {[%emt 0:00:15]} 8. Qxf3 {[%emt 0:00:08]} Bxe5 {[%emt 0:00:07]} 9. Nc3 {[%emt 0:01:19]} Nf6 {[%emt 0:00:20]} 10. Bg5 {[%emt 0:02:10]} h6 {[%emt 0:00:20]} 11. Bh4 {[%emt 0:01:13]} Qd6 {[%emt 0:00:41]} 12. h3 {[%emt 0:03:02]} g5 {[%emt 0:14:26]} 13. Bg3 {[%emt 0:00:29]} O-O-O {[%emt 0:01:13]} 14. Qf5+ {[%emt 0:00:30]} Nd7 {[%emt 0:00:40]} 15. Rad1 {[%emt 0:01:37]} Qe7 {[%emt 0:10:56]} 16. Bxe5 {[%emt 0:00:58]} Qxe5 {[%emt 0:19:15]} 17. Rxd7 {[%emt 0:00:25]} Qg7 {[%emt 0:02:48]} 18. Rxf7+ {[%emt 0:00:15]} Kb8 {[%emt 0:00:20]} 19. Rxg7 {[%emt 0:00:00]} Rhf8 {[%emt 0:00:23]} 20. Qh7 {[%emt 0:00:00]} Rc8 {[%emt 0:00:29]} 21. Rd1 {[%emt 0:00:00]} g4 {[%emt 0:00:21]} 22. Rdd7 {[%emt 0:00:00]} gxh3 {[%emt 0:00:18]} 23. gxh3 {[%emt 0:00:15]} Ka7 24. Rxc7 {[%emt 0:00:08]} Kb6 {[%emt 0:01:01]} 25. Rxb7+ {[%emt 0:00:15]} Kc5 {[%emt 0:00:06]} 26. Qxh6 {[%emt 0:00:15]} Rxf2 {[%emt 0:00:08]} 27. Kxf2 {[%emt 0:00:07]} Rf8+ {[%emt 0:00:08]} 28. Ke3 {[%emt 0:00:03]} Rd8 {[%emt 0:00:18]} 29. Rg5+ {[%emt 0:00:08]} Kc4 {[%emt 0:00:19]} 30. Qxc6# 1-0

[Event "GER-ch Youth U10 2020"]
[Site "Willingen"]
[Date "2020.10.28"]
[Round "3.10"]
[White "Rosenkranz, Lennard"]
[Black "Middendorf, Sven-Jonas"]
[Result "1-0"]
[ECO "C50"]
[WhiteElo "1467"]
[BlackElo "1355"]
[Annotator "NA"]
[PlyCount "121"]
[EventDate "2020.10.27"]
[EventType "swiss"]
[EventRounds "7"]
[EventCountry "GER"]
[SourceTitle "playchess.com"]
[Source "ChessBase"]
[SourceQuality "1"]
[TimeControl "40/4500+30:900+30"]

1. e4 {[%emt 0:00:00]} e5 {[%emt 0:00:00]} 2. Nf3 {[%emt 0:00:00]} Nc6 {[%emt 0:00:00]} 3. Bc4 {[%emt 0:00:00]} Bc5 {[%emt 0:00:00]} 4. O-O {[%emt 0:00:20]} Nf6 {[%emt 0:00:00]} 5. d4 {[%emt 0:00:10]} Bxd4 {[%emt 0:04:17]} 6. Nxd4 {[%emt 0:01:15]} Nxd4 {[%emt 0:00:23]} 7. Bg5 {[%emt 0:00:09]} h6 {[%emt 0:01:33]} 8. Bh4 {[%emt 0:00:09]} d6 {[%emt 0:02:07]} 9. f4 {[%emt 0:00:33]} Be6 {[%emt 0:10:09]} 10. fxe5 {[%emt 0:13:17]} dxe5 {[%emt 0:06:14]} 11. Bd3 {[%emt 0:02:36]} g5 {[%emt 0:03:56]} 12. Bg3 {[%emt 0:00:32]} Bg4 {[%emt 0:05:38]} 13. Qd2 {[%emt 0:03:48]} Nc6 {[%emt 0:06:47]} 14. Qc3 {[%emt 0:01:42]} Qe7 {[%emt 0:03:04]} 15. Bb5 {[%emt 0:02:56]} O-O {[%emt 0:07:11]} 16. Bxc6 {[%emt 0:00:28]} bxc6 {[%emt 0:00:07]} 17. Qxc6 {[%emt 0:00:51]} Qe6 {[%emt 0:06:54]} 18. Rxf6 {[%emt 0:03:07]} Qxc6 {[%emt 0:07:06]} 19. Rxc6 {[%emt 0:00:16]} f5 {[%emt 0:01:15]} 20. exf5 {[%emt 0:01:00]} Rxf5 {[%emt 0:00:59]} 21. Na3 {[%emt 0:00:11]} Raf8 {[%emt 0:00:22]} 22. Nc4 {[%emt 0:01:42]} Be2 {[%emt 0:02:34]} 23. Ne3 {[%emt 0:00:53]} R5f7 {[%emt 0:01:41]} 24. Bxe5 {[%emt 0:03:40]} Re8 {[%emt 0:01:43]} 25. Bd4 {[%emt 0:03:15]} Rd7 {[%emt 0:01:08]} 26. Nf5 {[%emt 0:01:47]} Rf8 {[%emt 0:06:03]} 27. Rg6+ {[%emt 0:04:22]} Kh7 {[%emt 0:02:17]} 28. Rxh6+ {[%emt 0:01:09]} Kg8 {[%emt 0:00:09]} 29. Rh8+ {[%emt 0:00:23]} Kf7 {[%emt 0:00:04]} 30. Rxf8+ {[%emt 0:00:33]} Kxf8 {[%emt 0:00:07]} 31. Re1 {[%emt 0:00:27]} Bg4 {[%emt 0:00:35]} 32. Bc5+ {[%emt 0:00:51]} Kg8 {[%emt 0:02:29]} 33. Nh6+ {[%emt 0:00:24]} Kg7 {[%emt 0:00:00]} 34. Nxg4 {[%emt 0:00:00]} Rd2 {[%emt 0:00:29]} 35. c4 {[%emt 0:00:00]} Rc2 {[%emt 0:00:36]} 36. Bd4+ {[%emt 0:00:56]} Kg6 {[%emt 0:00:31]} 37. h3 {[%emt 0:00:50]} Kh7 {[%emt 0:00:49]} 38. Re6 {[%emt 0:01:14]} Rc1+ {[%emt 0:01:01]} 39. Kh2 {[%emt 0:00:05]} Rf1 {[%emt 0:00:39]} 40. Rh6+ {[%emt 0:01:50]} Kg8 {[%emt 0:00:09]} 41. Rh8+ {[%emt 0:15:15]} Kf7 {[%emt 0:15:13]} 42. Ne5+ {[%emt 0:01:05]} Ke7 {[%emt 0:01:52]} 43. Rg8 {[%emt 0:02:09]} Kd6 {[%emt 0:01:50]} 44. Rxg5 {[%emt 0:00:13]} c5 {[%emt 0:00:15]} 45. Rg6+ {[%emt 0:00:31]} Kc7 {[%emt 0:00:48]} 46. Bxc5 {[%emt 0:00:08]} Kb7 {[%emt 0:00:31]} 47. h4 {[%emt 0:00:14]} Rf5 {[%emt 0:00:34]} 48. Rg5 {[%emt 0:00:26]} Rf6 {[%emt 0:00:35]} 49. Rg7+ {[%emt 0:01:02]} Kc8 {[%emt 0:00:58]} 50. Kh3 {[%emt 0:00:41]} Rh6 {[%emt 0:00:00]} 51. Kg4 {[%emt 0:00:00]} Kb8 {[%emt 0:00:00]} 52. Kg5 {[%emt 0:00:00]} Rh8 {[%emt 0:00:00]} 53. Rf7 {[%emt 0:00:00]} Re8 {[%emt 0:00:00]} 54. Rf8 {[%emt 0:00:00]} Kb7 {[%emt 0:00:00]} 55. Rxe8 {[%emt 0:00:00]} Ka6 {[%emt 0:00:00]} 56. h5 {[%emt 0:00:00]} Ka5 {[%emt 0:00:00]} 57. h6 {[%emt 0:00:00]} Ka4 {[%emt 0:00:00]} 58. Bxa7 {[%emt 0:00:00]} Ka5 {[%emt 0:00:00]} 59. h7 {[%emt 0:00:00]} Ka6 {[%emt 0:00:00]} 60. h8=Q {[%emt 0:00:00]} Ka5 {[%emt 0:00:00]} 61. Qf6 {[%emt 0:00:00]} 1-0

[Event "GER-ch Youth U10 2020"]
[Site "Willingen"]
[Date "2020.10.28"]
[Round "3.11"]
[White "Geist, Tim"]
[Black "Marcziter, Alex"]
[Result "0-1"]
[ECO "D02"]
[WhiteElo "1578"]
[BlackElo "1401"]
[Annotator "NA"]
[PlyCount "84"]
[EventDate "2020.10.27"]
[EventType "swiss"]
[EventRounds "7"]
[EventCountry "GER"]
[SourceTitle "playchess.com"]
[Source "ChessBase"]
[SourceQuality "1"]
[TimeControl "40/4500+30:900+30"]

1. d4 {[%emt 0:00:00]} d5 {[%emt 0:00:16]} 2. Nf3 {[%emt 0:00:00]} c6 {[%emt 0:01:28]} 3. e3 {[%emt 0:00:05]} e6 {[%emt 0:01:21]} 4. Bd3 {[%emt 0:00:30]} f5 {[%emt 0:01:14]} 5. O-O {[%emt 0:00:30]} Nf6 {[%emt 0:01:51]} 6. b3 {[%emt 0:00:50]} Bd6 {[%emt 0:00:33]} 7. Bb2 {[%emt 0:00:35]} O-O {[%emt 0:03:14]} 8. Nbd2 {[%emt 0:00:31]} Ne4 {[%emt 0:01:32]} 9. c4 {[%emt 0:01:10]} Nd7 {[%emt 0:01:29]} 10. Rc1 {[%emt 0:00:44]} Qe7 {[%emt 0:02:28]} 11. c5 {[%emt 0:01:00]} Bc7 {[%emt 0:00:59]} 12. b4 {[%emt 0:02:05]} Ndf6 {[%emt 0:04:01]} 13. Ne5 {[%emt 0:01:23]} Nd7 {[%emt 0:02:18]} 14. Ndf3 {[%emt 0:00:32]} g5 {[%emt 0:05:39]} 15. Nxd7 Bxd7 {[%emt 0:00:24]} 16. Ne5 {[%emt 0:02:02]} Be8 {[%emt 0:02:41]} 17. a4 {[%emt 0:01:35]} Kh8 {[%emt 0:03:01]} 18. b5 {[%emt 0:00:35]} Rg8 {[%emt 0:02:09]} 19. f3 {[%emt 0:02:17]} Nf6 {[%emt 0:00:53]} 20. Qd2 {[%emt 0:03:36]} Qg7 {[%emt 0:03:16]} 21. e4 {[%emt 0:02:11]} f4 {[%emt 0:03:08]} 22. exd5 {[%emt 0:01:49]} exd5 {[%emt 0:00:26]} 23. Bf5 {[%emt 0:00:54]} Rd8 {[%emt 0:05:35]} 24. Be6 {[%emt 0:02:39]} Rf8 {[%emt 0:00:21]} 25. Rfe1 {[%emt 0:02:26]} cxb5 {[%emt 0:04:05]} 26. axb5 {[%emt 0:02:09]} Bxb5 {[%emt 0:00:22]} 27. c6 {[%emt 0:00:28]} bxc6 {[%emt 0:00:54]} 28. Nxc6 {[%emt 0:00:13]} Bxc6 {[%emt 0:00:09]} 29. Rxc6 {[%emt 0:00:09]} Bb6 {[%emt 0:00:50]} 30. Bf5 {[%emt 0:02:43]} Rfe8 {[%emt 0:01:48]} 31. Ree6 {[%emt 0:00:52]} Rxe6 {[%emt 0:00:59]} 32. Bxe6 {[%emt 0:01:28]} Qe7 {[%emt 0:03:33]} 33. Qd3 {[%emt 0:01:34]} Qb4 {[%emt 0:02:34]} 34. Bc3 {[%emt 0:02:48]} Qa4 {[%emt 0:01:07]} 35. Rc8 {[%emt 0:03:04]} Rxc8 {[%emt 0:02:41]} 36. Bxc8 {[%emt 0:00:13]} Qe8 {[%emt 0:00:39]} 37. Ba6 {[%emt 0:02:19]} Qe6 {[%emt 0:01:33]} 38. h3 {[%emt 0:01:04]} Nh5 {[%emt 0:01:53]} 39. Qe2 {[%emt 0:07:59]} Qxe2 {[%emt 0:04:05]} 40. Bxe2 {[%emt 0:00:09]} Ng3 {[%emt 0:00:10]} 41. Bb5 {[%emt 0:15:40]} Kg7 {[%emt 0:16:13]} 42. Bc6 {[%emt 0:00:26]} Ne2+ {[%emt 0:00:06]} 0-1

[Event "GER-ch Youth U10 2020"]
[Site "Willingen"]
[Date "2020.10.28"]
[Round "3.12"]
[White "Aniol, Nico"]
[Black "Laux, Filip"]
[Result "1-0"]
[ECO "B10"]
[WhiteElo "1417"]
[BlackElo "1198"]
[Annotator "NA"]
[PlyCount "89"]
[EventDate "2020.10.27"]
[EventType "swiss"]
[EventRounds "7"]
[EventCountry "GER"]
[SourceTitle "playchess.com"]
[Source "ChessBase"]
[SourceQuality "1"]
[TimeControl "40/4500+30:900+30"]

1. e4 {[%emt 0:00:00]} c6 {[%emt 0:00:00]} 2. c4 {[%emt 0:00:30]} e5 {[%emt 0:00:30]} 3. Nc3 {[%emt 0:02:55]} Nf6 {[%emt 0:00:30]} 4. Nf3 {[%emt 0:00:59]} d6 {[%emt 0:00:39]} 5. d3 {[%emt 0:00:49]} g6 {[%emt 0:00:34]} 6. Bg5 {[%emt 0:00:51]} Bg7 {[%emt 0:00:57]} 7. Be2 {[%emt 0:01:24]} O-O {[%emt 0:00:45]} 8. O-O {[%emt 0:01:03]} Nbd7 {[%emt 0:01:24]} 9. Qd2 {[%emt 0:01:37]} a6 {[%emt 0:01:33]} 10. a4 {[%emt 0:00:35]} Re8 {[%emt 0:01:32]} 11. b4 {[%emt 0:02:10]} a5 {[%emt 0:06:05]} 12. b5 {[%emt 0:02:22]} Nc5 {[%emt 0:02:19]} 13. Rab1 {[%emt 0:01:16]} Qc7 {[%emt 0:01:04]} 14. h3 {[%emt 0:02:13]} Bd7 {[%emt 0:05:38]} 15. Be3 {[%emt 0:01:33]} Ne6 {[%emt 0:02:38]} 16. Nh2 {[%emt 0:05:03]} Nd4 {[%emt 0:08:46]} 17. f4 {[%emt 0:02:02]} Nxe2+ {[%emt 0:02:35]} 18. Nxe2 {[%emt 0:00:28]} Qc8 {[%emt 0:03:27]} 19. fxe5 {[%emt 0:01:13]} dxe5 {[%emt 0:00:21]} 20. Ng3 {[%emt 0:01:29]} c5 {[%emt 0:01:22]} 21. Bg5 {[%emt 0:01:15]} Qd8 {[%emt 0:01:32]} 22. Qf2 {[%emt 0:00:52]} Re6 {[%emt 0:01:06]} 23. Qxc5 {[%emt 0:01:11]} b6 {[%emt 0:01:45]} 24. Qf2 {[%emt 0:00:13]} h6 {[%emt 0:00:10]} 25. Be3 {[%emt 0:02:06]} Bc8 {[%emt 0:03:47]} 26. Rbd1 {[%emt 0:02:05]} Rb8 {[%emt 0:01:15]} 27. Qd2 {[%emt 0:01:18]} Bb7 {[%emt 0:01:51]} 28. Nf3 {[%emt 0:02:08]} h5 {[%emt 0:02:40]} 29. Kh1 {[%emt 0:03:39]} Rd6 {[%emt 0:07:39]} 30. Qe2 {[%emt 0:01:49]} Re6 {[%emt 0:00:46]} 31. Qc2 {[%emt 0:00:23]} Rc8 {[%emt 0:01:29]} 32. Qb3 {[%emt 0:02:15]} Qc7 {[%emt 0:03:14]} 33. Rc1 {[%emt 0:02:23]} Nd7 {[%emt 0:01:24]} 34. Ng5 {[%emt 0:01:18]} Re7 {[%emt 0:00:51]} 35. Rxf7 {[%emt 0:05:30]} Rxf7 {[%emt 0:02:31]} 36. Nxf7 {[%emt 0:00:05]} Kxf7 {[%emt 0:01:33]} 37. c5+ {[%emt 0:00:43]} Kf8 {[%emt 0:00:40]} 38. c6 {[%emt 0:00:23]} Bxc6 {[%emt 0:02:36]} 39. Rxc6 {[%emt 0:00:00]} Qd8 {[%emt 0:00:11]} 40. Qd5 {[%emt 0:00:32]} Rb8 {[%emt 0:01:43]} 41. Qd6+ {[%emt 0:16:35]} Kg8 {[%emt 0:16:54]} 42. Qxg6 {[%emt 0:01:21]} Nf6 {[%emt 0:01:13]} 43. Nf5 {[%emt 0:01:46]} Qf8 {[%emt 0:00:37]} 44. Nxg7 {[%emt 0:01:13]} Qxg7 {[%emt 0:00:17]} 45. Rxf6 {[%emt 0:00:06]} 1-0

[Event "GER-ch Youth U10 2020"]
[Site "Willingen"]
[Date "2020.10.28"]
[Round "3.13"]
[White "Goldkuhle, Collin"]
[Black "Kullmann, Theo"]
[Result "0-1"]
[ECO "C60"]
[WhiteElo "1418"]
[BlackElo "1632"]
[Annotator "NA"]
[PlyCount "120"]
[EventDate "2020.10.27"]
[EventType "swiss"]
[EventRounds "7"]
[EventCountry "GER"]
[SourceTitle "playchess.com"]
[Source "ChessBase"]
[SourceQuality "1"]
[TimeControl "40/4500+30:900+30"]

1. e4 {[%emt 0:00:00]} e5 {[%emt 0:00:00]} 2. Nf3 {[%emt 0:00:00]} Nc6 {[%emt 0:00:00]} 3. Bb5 {[%emt 0:00:00]} Nge7 {[%emt 0:00:00]} 4. O-O {[%emt 0:00:00]} a6 {[%emt 0:00:00]} 5. Ba4 {[%emt 0:00:02]} g6 {[%emt 0:00:03]} 6. c3 {[%emt 0:00:04]} Bg7 {[%emt 0:00:21]} 7. h3 {[%emt 0:00:34]} b5 {[%emt 0:00:31]} 8. Bc2 {[%emt 0:00:28]} O-O {[%emt 0:00:24]} 9. d4 {[%emt 0:00:19]} d6 {[%emt 0:00:09]} 10. Be3 {[%emt 0:01:39]} f5 {[%emt 0:01:46]} 11. Bg5 {[%emt 0:01:42]} Qe8 {[%emt 0:00:29]} 12. a4 {[%emt 0:01:28]} Bb7 {[%emt 0:01:22]} 13. Nbd2 {[%emt 0:00:15]} h6 {[%emt 0:00:39]} 14. Bxe7 {[%emt 0:00:17]} Qxe7 {[%emt 0:02:03]} 15. Qe2 {[%emt 0:00:23]} exd4 {[%emt 0:01:53]} 16. cxd4 {[%emt 0:01:21]} Bxd4 {[%emt 0:00:40]} 17. axb5 {[%emt 0:02:07]} Ne5 {[%emt 0:14:38]} 18. Nxd4 {[%emt 0:00:26]} axb5 {[%emt 0:00:59]} 19. Rxa8 {[%emt 0:00:16]} Bxa8 {[%emt 0:00:22]} 20. exf5 {[%emt 0:02:04]} gxf5 {[%emt 0:03:29]} 21. Nxf5 {[%emt 0:02:47]} Rxf5 {[%emt 0:01:55]} 22. Bxf5 {[%emt 0:00:12]} Nf3+ {[%emt 0:00:21]} 23. Qxf3 {[%emt 0:01:05]} Bxf3 {[%emt 0:00:19]} 24. Nxf3 {[%emt 0:00:05]} Qf6 {[%emt 0:00:12]} 25. g4 {[%emt 0:02:08]} Qxb2 {[%emt 0:00:51]} 26. Rb1 {[%emt 0:00:26]} Qc3 {[%emt 0:00:30]} 27. Nh4 {[%emt 0:01:12]} Qxh3 {[%emt 0:01:00]} 28. Ng6 {[%emt 0:00:54]} Qc3 {[%emt 0:16:02]} 29. Kg2 {[%emt 0:10:42]} Kf7 {[%emt 0:01:27]} 30. f3 {[%emt 0:00:53]} Qd2+ {[%emt 0:01:20]} 31. Kg3 {[%emt 0:04:45]} c5 {[%emt 0:02:12]} 32. Nf4 {[%emt 0:02:24]} b4 {[%emt 0:02:43]} 33. Nd3 {[%emt 0:01:12]} Kf6 {[%emt 0:09:29]} 34. Nf2 {[%emt 0:01:55]} d5 {[%emt 0:01:09]} 35. Rd1 {[%emt 0:03:23]} Qa2 {[%emt 0:00:12]} 36. Re1 {[%emt 0:01:03]} c4 {[%emt 0:03:35]} 37. Re6+ {[%emt 0:00:55]} Kg7 {[%emt 0:00:53]} 38. Rg6+ {[%emt 0:00:09]} Kf7 {[%emt 0:00:11]} 39. Nh3 {[%emt 0:03:58]} Qd2 {[%emt 0:01:21]} 40. Rd6 {[%emt 0:02:42]} Ke7 {[%emt 0:00:46]} 41. Rd7+ {[%emt 0:15:18]} Kf6 {[%emt 0:15:43]} 42. Rd6+ {[%emt 0:00:09]} Ke7 {[%emt 0:00:55]} 43. Rd7+ {[%emt 0:00:05]} Ke8 {[%emt 0:00:21]} 44. Nf4 d4 {[%emt 0:02:01]} 45. Ng6 {[%emt 0:03:25]} Qe1+ {[%emt 0:01:32]} 46. Kg2 {[%emt 0:00:46]} d3 {[%emt 0:02:10]} 47. Re7+ {[%emt 0:00:05]} Qxe7 48. Nxe7 Kxe7 49. Kf2 b3 {[%emt 0:01:40]} 50. Ke3 {[%emt 0:02:27]} b2 {[%emt 0:00:14]} 51. Bxd3 {[%emt 0:00:16]} cxd3 {[%emt 0:00:10]} 52. g5 {[%emt 0:00:21]} hxg5 {[%emt 0:00:30]} 53. f4 {[%emt 0:00:07]} gxf4+ {[%emt 0:00:12]} 54. Ke4 {[%emt 0:00:07]} b1=Q {[%emt 0:00:11]} 55. Kd4 {[%emt 0:00:21]} d2 {[%emt 0:00:26]} 56. Ke5 {[%emt 0:00:20]} d1=Q 57. Kxf4 Qe1 {[%emt 0:01:33]} 58. Kg4 {[%emt 0:01:00]} Qf1 {[%emt 0:00:15]} 59. Kh5 {[%emt 0:00:37]} Qg2 {[%emt 0:00:23]} 60. Kh6 Qbh1# 0-1

[Event "GER-ch Youth U10 2020"]
[Site "Willingen"]
[Date "2020.10.28"]
[Round "3.14"]
[White "Braun, Julian"]
[Black "Peglau, Paul David"]
[Result "1-0"]
[ECO "C10"]
[WhiteElo "1441"]
[BlackElo "1322"]
[Annotator "NA"]
[PlyCount "63"]
[EventDate "2020.10.27"]
[EventType "swiss"]
[EventRounds "7"]
[EventCountry "GER"]
[SourceTitle "playchess.com"]
[Source "ChessBase"]
[SourceQuality "1"]
[TimeControl "40/4500+30:900+30"]

1. e4 {[%emt 0:00:00]} e6 {[%emt 0:00:00]} 2. d4 {[%emt 0:00:00]} d5 {[%emt 0:00:00]} 3. Nd2 {[%emt 0:00:00]} dxe4 {[%emt 0:00:00]} 4. Nxe4 {[%emt 0:00:00]} Bd7 {[%emt 0:00:08]} 5. Nf3 {[%emt 0:00:09]} Bc6 {[%emt 0:00:05]} 6. Bd3 {[%emt 0:04:00]} Nd7 {[%emt 0:00:32]} 7. O-O {[%emt 0:01:27]} Ngf6 {[%emt 0:00:10]} 8. Re1 {[%emt 0:01:49]} Be7 {[%emt 0:01:36]} 9. Qe2 {[%emt 0:07:44]} O-O {[%emt 0:02:13]} 10. c4 {[%emt 0:11:02]} Nxe4 {[%emt 0:01:31]} 11. Bxe4 {[%emt 0:00:16]} Bxe4 {[%emt 0:00:29]} 12. Qxe4 {[%emt 0:00:02]} c6 {[%emt 0:00:13]} 13. b3 {[%emt 0:10:48]} Bf6 {[%emt 0:01:30]} 14. Ba3 {[%emt 0:02:45]} Re8 {[%emt 0:03:45]} 15. Rad1 {[%emt 0:01:39]} Qc7 {[%emt 0:01:21]} 16. d5 {[%emt 0:04:30]} cxd5 {[%emt 0:04:42]} 17. cxd5 {[%emt 0:05:33]} Bc3 {[%emt 0:03:45]} 18. Rc1 {[%emt 0:03:30]} Nf6 {[%emt 0:00:39]} 19. Qd3 {[%emt 0:05:09]} Nxd5 {[%emt 0:01:11]} 20. Ng5 {[%emt 0:08:39]} g6 {[%emt 0:01:26]} 21. Qh3 {[%emt 0:01:57]} h5 {[%emt 0:01:05]} 22. Ne4 {[%emt 0:01:28]} Bxe1 {[%emt 0:01:17]} 23. Rxc7 {[%emt 0:00:22]} Nxc7 {[%emt 0:00:06]} 24. Qe3 {[%emt 0:02:48]} Ba5 {[%emt 0:00:26]} 25. Nf6+ {[%emt 0:01:41]} Kg7 {[%emt 0:03:42]} 26. Qe5 {[%emt 0:01:00]} Red8 {[%emt 0:01:38]} 27. Ne4+ {[%emt 0:06:44]} Kh7 {[%emt 0:00:43]} 28. Nf6+ {[%emt 0:00:15]} Kg7 {[%emt 0:00:23]} 29. Ne4+ {[%emt 0:00:36]} Kh7 {[%emt 0:00:08]} 30. Nf6+ {[%emt 0:00:06]} Kg7 31. Nd7+ {[%emt 0:00:24]} Kh7 {[%emt 0:00:55]} 32. Bb2 {[%emt 0:01:02]} 1-0

[Event "GER-ch Youth U10 2020"]
[Site "Willingen"]
[Date "2020.10.28"]
[Round "3.15"]
[White "Kullmann, Max"]
[Black "Wolff, Calvin"]
[Result "1-0"]
[ECO "D31"]
[WhiteElo "1375"]
[BlackElo "1219"]
[Annotator "NA"]
[PlyCount "71"]
[EventDate "2020.10.27"]
[EventType "swiss"]
[EventRounds "7"]
[EventCountry "GER"]
[SourceTitle "playchess.com"]
[Source "ChessBase"]
[SourceQuality "1"]
[TimeControl "40/4500+30:900+30"]

1. d4 {[%emt 0:00:00]} d5 {[%emt 0:00:19]} 2. c4 {[%emt 0:00:00]} e6 {[%emt 0:00:43]} 3. Nc3 {[%emt 0:00:00]} Be7 {[%emt 0:01:02]} 4. Nf3 {[%emt 0:00:59]} Nf6 {[%emt 0:00:33]} 5. e3 {[%emt 0:00:56]} b6 {[%emt 0:02:27]} 6. cxd5 {[%emt 0:00:38]} Nxd5 {[%emt 0:00:29]} 7. Nxd5 {[%emt 0:00:20]} Qxd5 {[%emt 0:00:22]} 8. Qc2 {[%emt 0:01:20]} c5 {[%emt 0:00:45]} 9. dxc5 {[%emt 0:01:05]} Bxc5 {[%emt 0:01:17]} 10. Bd3 {[%emt 0:00:38]} Bb7 {[%emt 0:00:42]} 11. e4 {[%emt 0:03:35]} Qd6 {[%emt 0:04:46]} 12. O-O {[%emt 0:01:47]} h6 {[%emt 0:01:29]} 13. b3 {[%emt 0:01:25]} Nc6 {[%emt 0:01:11]} 14. Qe2 {[%emt 0:03:53]} Nb4 {[%emt 0:01:18]} 15. Bb5+ {[%emt 0:00:58]} Bc6 {[%emt 0:01:08]} 16. Bxc6+ {[%emt 0:02:13]} Nxc6 {[%emt 0:00:54]} 17. Bb2 {[%emt 0:01:22]} O-O {[%emt 0:01:00]} 18. Rfd1 {[%emt 0:00:32]} Qc7 {[%emt 0:02:04]} 19. Qc2 {[%emt 0:00:55]} Rad8 {[%emt 0:04:03]} 20. Qc3 {[%emt 0:01:09]} f6 {[%emt 0:01:07]} 21. Qc4 {[%emt 0:03:07]} Rxd1+ {[%emt 0:01:19]} 22. Rxd1 {[%emt 0:00:36]} Re8 {[%emt 0:02:18]} 23. a3 {[%emt 0:02:38]} Nb8 {[%emt 0:05:10]} 24. Rc1 {[%emt 0:03:16]} Qf7 {[%emt 0:07:51]} 25. b4 {[%emt 0:00:30]} Bd6 {[%emt 0:00:43]} 26. e5 {[%emt 0:01:00]} Be7 {[%emt 0:00:42]} 27. Qc7 {[%emt 0:02:01]} fxe5 {[%emt 0:00:59]} 28. Nxe5 {[%emt 0:01:05]} Qf5 {[%emt 0:00:29]} 29. Nf3 {[%emt 0:01:29]} Qd5 {[%emt 0:02:39]} 30. Qg3 {[%emt 0:01:14]} Bf8 {[%emt 0:00:37]} 31. Qc7 {[%emt 0:04:44]} Rd8 {[%emt 0:01:10]} 32. h3 {[%emt 0:00:52]} Qd1+ {[%emt 0:03:47]} 33. Rxd1 {[%emt 0:00:10]} Rxd1+ {[%emt 0:00:11]} 34. Ne1 {[%emt 0:00:22]} Rxe1+ {[%emt 0:00:30]} 35. Kh2 {[%emt 0:00:09]} Rd1 {[%emt 0:00:11]} 36. Qxb8 {[%emt 0:00:25]} 1-0

[Event "GER-ch Youth U10 2020"]
[Site "Willingen"]
[Date "2020.10.28"]
[Round "3.16"]
[White "Zimmer, Tim"]
[Black "Uyar, Levin"]
[Result "1-0"]
[ECO "C01"]
[WhiteElo "1025"]
[BlackElo "1471"]
[Annotator "NA"]
[PlyCount "112"]
[EventDate "2020.10.27"]
[EventType "swiss"]
[EventRounds "7"]
[EventCountry "GER"]
[SourceTitle "playchess.com"]
[Source "ChessBase"]
[SourceQuality "1"]
[TimeControl "40/4500+30:900+30"]

1. e4 {[%emt 0:00:00]} e6 {[%emt 0:00:00]} 2. d4 {[%emt 0:00:33]} d5 {[%emt 0:00:00]} 3. exd5 {[%emt 0:00:10]} exd5 {[%emt 0:00:00]} 4. Bd3 {[%emt 0:00:26]} Nc6 {[%emt 0:00:08]} 5. Ne2 {[%emt 0:01:05]} Nb4 {[%emt 0:00:25]} 6. O-O {[%emt 0:04:33]} Bd6 {[%emt 0:00:37]} 7. Nbc3 {[%emt 0:03:34]} c6 {[%emt 0:00:35]} 8. Ng3 {[%emt 0:08:05]} Nxd3 {[%emt 0:00:29]} 9. Qxd3 {[%emt 0:00:27]} Nf6 {[%emt 0:00:21]} 10. Re1+ {[%emt 0:01:42]} Be6 {[%emt 0:00:22]} 11. Bg5 {[%emt 0:00:46]} Qc7 {[%emt 0:00:39]} 12. Nf5 {[%emt 0:03:46]} O-O-O {[%emt 0:10:45]} 13. Nxg7 {[%emt 0:01:44]} Bxh2+ {[%emt 0:05:31]} 14. Kf1 {[%emt 0:03:04]} Qe7 {[%emt 0:02:23]} 15. Qf3 {[%emt 0:00:34]} Ne4 {[%emt 0:10:40]} 16. Bxe7 {[%emt 0:00:43]} Nd2+ {[%emt 0:00:47]} 17. Ke2 {[%emt 0:00:02]} Nxf3 {[%emt 0:00:32]} 18. Kxf3 {[%emt 0:00:04]} Rd7 {[%emt 0:00:45]} 19. Bf6 {[%emt 0:00:11]} Rf8 {[%emt 0:07:24]} 20. g3 {[%emt 0:00:20]} Bh3 {[%emt 0:07:47]} 21. Rh1 {[%emt 0:01:24]} Rg8 {[%emt 0:04:39]} 22. Rxh2 {[%emt 0:00:38]} Be6 {[%emt 0:00:20]} 23. Rxh7 {[%emt 0:00:20]} Rd6 {[%emt 0:00:35]} 24. Be5 {[%emt 0:00:22]} Rd7 {[%emt 0:00:18]} 25. Rah1 {[%emt 0:00:33]} Rf8 {[%emt 0:00:54]} 26. Rh8 {[%emt 0:00:58]} Rdd8 {[%emt 0:00:29]} 27. Nxe6 {[%emt 0:00:13]} fxe6+ {[%emt 0:00:08]} 28. Ke3 {[%emt 0:00:11]} Rf7 {[%emt 0:01:00]} 29. Na4 {[%emt 0:00:45]} b6 {[%emt 0:00:26]} 30. Rxd8+ {[%emt 0:00:27]} Kxd8 {[%emt 0:00:13]} 31. Rh8+ {[%emt 0:00:27]} Kd7 {[%emt 0:00:23]} 32. Ra8 {[%emt 0:00:28]} Rf5 {[%emt 0:00:43]} 33. Rxa7+ {[%emt 0:00:12]} Ke8 {[%emt 0:00:39]} 34. Ra8+ {[%emt 0:02:36]} Ke7 {[%emt 0:00:12]} 35. Nxb6 {[%emt 0:00:10]} Rh5 {[%emt 0:00:31]} 36. Nc8+ {[%emt 0:00:41]} Kd7 {[%emt 0:00:18]} 37. Nd6 {[%emt 0:02:55]} Ke7 {[%emt 0:00:41]} 38. Ra7+ {[%emt 0:00:48]} Kf8 {[%emt 0:00:10]} 39. Bf6 {[%emt 0:00:43]} Kg8 {[%emt 0:00:12]} 40. Ra8+ {[%emt 0:00:13]} Kh7 {[%emt 0:00:13]} 41. Rh8+ {[%emt 0:15:04]} Kg6 {[%emt 0:15:10]} 42. Rxh5 {[%emt 0:00:07]} Kxh5 {[%emt 0:00:11]} 43. a4 {[%emt 0:00:02]} Kg6 {[%emt 0:00:15]} 44. a5 {[%emt 0:02:14]} Kxf6 {[%emt 0:00:10]} 45. a6 {[%emt 0:00:07]} Ke7 {[%emt 0:00:06]} 46. a7 {[%emt 0:00:04]} Kxd6 {[%emt 0:00:05]} 47. a8=Q {[%emt 0:00:27]} Kc7 {[%emt 0:00:10]} 48. b4 {[%emt 0:00:12]} Kd7 {[%emt 0:00:04]} 49. Qb7+ {[%emt 0:00:11]} Kd6 {[%emt 0:00:14]} 50. f4 e5 {[%emt 0:00:12]} 51. fxe5+ {[%emt 0:00:44]} Ke6 {[%emt 0:00:15]} 52. Qxc6+ {[%emt 0:00:16]} Kf5 {[%emt 0:00:11]} 53. g4+ {[%emt 0:00:23]} Kg5 {[%emt 0:00:18]} 54. Qf6+ {[%emt 0:00:13]} Kxg4 55. Qf4+ Kh3 {[%emt 0:00:59]} 56. Qg5 {[%emt 0:00:36]} Kh2 {[%emt 0:00:00]} 1-0